bitfinex-derivatives/quotes_SOLF0:USTF0_20250901
["timestamp","ask_amount","ask_price","bid_price","bid_amount"]
[1756719276093,2.13598116,203.03,203.02,0.03229315]
[1756719278584,121.66,203.06,203.02,0.03229315]
[1756719278782,2.13598116,203.04,203.02,0.03229315]
[1756719280501,121.48,203.03,203.02,0.03229315]
[1756719283503,121.42,203.03,203.02,0.03229315]
[1756719290812,2.13598116,203.05,203.02,0.03229315]
[1756719291013,121.32,203.04,203.02,0.03229315]
[1756719291910,121.34,203.03,203.02,0.03229315]
[1756719292814,2.13598116,203.05,203.02,0.03229315]
[1756719293015,121.34,203.03,203.02,0.03229315]
[1756719296220,2.13598116,203.04,203.02,0.03229315]
[1756719296421,121.34,203.03,203.02,0.03229315]
[1756719299222,121.32,203.03,203.02,0.03229315]
[1756719300225,0.85737515,203.07,203.02,0.03229315]
[1756719300522,121.32,203.03,203.02,0.03229315]
[1756719301323,0.85737515,203.07,203.03,7.89]
[1756719301519,331.16,203.08,203.02,0.03229315]
[1756719301725,121.32,203.07,203.02,0.03229315]
[1756719302523,121.32,203.07,203.02,7.92229315]
[1756719304328,124.313388,203.07,203.02,0.03229315]
[1756719304626,2.13598116,203.04,203.02,0.03229315]
[1756719304827,121.32,203.03,203.02,0.03229315]
[1756719305228,121.32,203.03,202.92,11.99258287]
[1756719305529,2.13598116,203.01,202.92,7.89]
[1756719306229,2.13598116,202.98,202.89,4.10258287]
[1756719306528,2.13598116,202.95,202.87,4.10258287]
[1756719306728,2.13598116,202.95,202.85,11.99258287]
[1756719307224,0.03480226,202.92,202.85,11.99258287]
[1756719307432,27.66,202.91,202.85,7.89]
[1756719307623,27.66,202.91,202.82,4.10258287]
[1756719307819,27.66,202.91,202.81,11.99258287]
[1756719308226,27.66,202.91,202.81,7.89]
[1756719308427,0.03276486,202.88,202.81,7.89]
[1756719309023,0.03276486,202.88,202.81,12.03398553]
[1756719309228,0.03276486,202.88,202.81,7.89]
[1756719313832,0.03276486,202.88,202.81,10.02598116]
[1756719314236,0.03276486,202.88,202.82,7.31]
[1756719323336,0.03276486,202.88,202.83,2.13598116]
[1756719323741,0.24,202.91,202.84,7.31]
[1756719324236,0.03537054,202.88,202.83,2.13598116]
[1756719324438,0.03537054,202.88,202.84,7.31]
[1756719325543,0.03537054,202.88,202.8,9.44598116]
[1756719325740,0.03537054,202.88,202.8,7.31]
[1756719327045,18.58,202.87,202.8,7.31]
[1756719327941,18.58,202.87,202.78,2.13598116]
[1756719329043,18.58,202.87,202.77,7.31]
[1756719329235,18.58,202.87,202.74,4.14398553]
[1756719329437,2.13598116,202.81,202.72,4.14398553]
[1756719329636,2.13598116,202.81,202.69,9.44598116]
[1756719329840,2.13598116,202.81,202.69,7.31]
[1756719330041,0.03653721,202.79,202.69,7.31]
[1756719330259,8.49598116,202.78,202.69,7.31]
[1756719333345,11.46,202.77,202.69,7.31]
[1756719333845,2.13598116,202.78,202.69,7.31]
[1756719334051,16.26,202.77,202.69,7.31]
[1756719334854,16.26,202.77,202.66,9.44598116]
[1756719335551,0.03637692,202.74,202.66,9.44598116]
[1756719337649,0.03637692,202.74,202.69,2.13598116]
[1756719338150,3.32,202.78,202.7,7.31]
[1756719338342,0.036297,202.74,202.7,7.52]
[1756719338546,0.036297,202.74,202.69,2.13598116]
[1756719338850,0.036297,202.74,202.7,7.52]
[1756719339150,0.036297,202.74,202.69,2.13598116]
[1756719339347,0.036297,202.74,202.7,7.52]
[1756719339946,0.036297,202.74,202.69,2.13598116]
[1756719340146,0.036297,202.74,202.69,9.65598116]
[1756719340550,0.036297,202.74,202.7,7.52]
[1756719340852,0.036297,202.74,202.69,2.13598116]
[1756719341249,0.036297,202.74,202.69,7.52]
[1756719341447,0.036297,202.74,202.68,2.13598116]
[1756719341652,0.036297,202.74,202.68,9.65598116]
[1756719342152,0.036297,202.74,202.68,7.52]
[1756719346156,0.036297,202.74,202.68,9.65598116]
[1756719346954,0.036297,202.74,202.61,7.52]
[1756719347152,0.036297,202.74,202.64,9.65598116]
[1756719347352,2.15598116,202.76,202.64,9.65598116]
[1756719347353,2.15598116,202.76,202.64,7.52]
[1756719347654,0.03161942,202.71,202.64,7.52]
[1756719359964,41.19161942,202.71,202.64,7.52]
[1756719360166,0.03161942,202.71,202.64,7.52]
[1756719360464,20.33161942,202.71,202.64,7.52]
[1756719360766,0.03161942,202.71,202.64,7.52]
[1756719363064,2.13598116,202.68,202.56,4.11901654]
[1756719363266,2.13598116,202.65,202.56,7.52]
[1756719363465,5.36,202.64,202.56,7.52]
[1756719363662,7.24,202.64,202.56,9.65598116]
[1756719363864,2.13598116,202.68,202.56,9.65598116]
[1756719363865,0.03350986,202.63,202.56,9.65598116]
[1756719366678,0.03350986,202.63,202.56,7.52]
[1756719367875,6.05350986,202.63,202.56,7.52]
[1756719368576,0.03350986,202.63,202.56,7.52]
[1756719370877,0.03350986,202.63,202.56,9.65598116]
[1756719371474,0.03350986,202.63,202.57,8.11]
[1756719376781,0.03350986,202.63,202.53,8.11]
[1756719377278,2.16598116,202.65,202.53,8.11]
[1756719377479,0.03229704,202.6,202.53,8.11]
[1756719379283,0.06229704,202.6,202.48,10.24598116]
[1756719379488,2.13598116,202.59,202.48,2.13598116]
[1756719379688,18.54,202.58,202.49,8.11]
[1756719380077,0.03742386,202.56,202.49,8.11]
[1756719380381,36.12,202.62,202.55,8.11]
[1756719380577,2.13598116,202.65,202.55,8.11]
[1756719380982,121.58,202.64,202.55,8.11]
[1756719381581,121.6,202.64,202.55,8.11]
[1756719382682,121.67,202.64,202.55,8.11]
[1756719383189,2.13598116,202.62,202.51,8.11]
[1756719384586,19.74,202.61,202.51,8.11]
[1756719386293,38.32,202.6,202.51,8.11]
[1756719388493,55.84,202.59,202.51,8.11]
[1756719391296,55.84,202.59,202.5,2.13598116]
[1756719391498,55.84,202.59,202.5,10.24598116]
[1756719391699,71.76,202.58,202.5,10.24598116]
[1756719392300,86.84,202.58,202.5,10.24598116]
[1756719392498,0.07,202.61,202.5,10.24598116]
[1756719392694,101.14,202.6,202.5,10.24598116]
[1756719394401,0.07,202.61,202.5,10.24598116]
[1756719394696,114.64,202.6,202.5,10.24598116]
[1756719394899,114.64,202.6,202.5,8.11]
[1756719395802,0.07,202.61,202.5,8.11]
[1756719396103,6.7,202.6,202.5,8.11]
[1756719396303,0.03689683,202.58,202.53,0.03383312]
[1756719397498,0.10689683,202.58,202.53,0.03383312]
[1756719402806,0.03689683,202.58,202.53,0.03383312]
[1756719403004,0.07,202.57,202.53,0.03383312]
[1756719404107,25.01,202.57,202.53,0.03383312]
[1756719405514,24.94,202.57,202.53,0.03383312]
[1756719405711,0.07,202.56,202.53,0.03383312]
[1756719406103,24.94,202.57,202.53,0.03383312]
[1756719406303,2.20598116,202.56,202.53,0.03383312]
[1756719407815,2.20598116,202.55,202.53,0.03383312]
[1756719408113,0.07,202.54,202.53,0.03383312]
[1756719411811,0.10689683,202.58,202.53,0.03383312]
[1756719412019,19.93598116,202.57,202.53,0.03383312]
[1756719412413,0.07,202.56,202.53,0.03383312]
[1756719413014,36.84,202.55,202.53,0.03383312]
[1756719414314,37.34,202.55,202.53,0.03383312]
[1756719414621,0.07,202.54,202.53,0.03383312]
[1756719414919,36.84,202.55,202.53,0.03383312]
[1756719415121,2.13598116,202.57,202.53,0.03383312]
[1756719415322,54.9,202.56,202.53,0.03383312]
[1756719416218,71.94,202.55,202.53,0.03383312]
[1756719418116,87.92,202.54,202.53,0.03383312]
[1756719420024,103.36,202.54,202.53,0.03383312]
[1756719420225,117.96,202.54,202.53,0.03383312]
[1756719421015,118.03,202.54,202.53,0.03383312]
[1756719422417,120.16598116,202.54,202.53,0.03383312]
[1756719423427,118.03,202.54,202.53,0.03383312]
[1756719423826,120.16598116,202.54,202.53,0.03383312]
[1756719424325,118.03,202.54,202.53,0.03383312]
[1756719424826,121.6,202.54,202.53,0.03383312]
[1756719425423,121.67,202.54,202.53,0.03383312]
[1756719425727,123.80598116,202.54,202.53,0.03383312]
[1756719426329,124.23598116,202.54,202.43,4.13093499]
[1756719426625,2.13598116,202.48,202.41,4.13093499]
[1756719426830,122.26,202.47,202.41,4.13093499]
[1756719427026,122.26,202.47,202.39,4.13093499]
[1756719427223,122.3,202.46,202.39,11.76093499]
[1756719427622,0.03628258,202.45,202.39,11.76093499]
[1756719427824,0.03628258,202.45,202.39,4.13093499]
[1756719428222,0.03628258,202.45,202.39,11.82093499]
[1756719428423,0.03628258,202.45,202.39,4.13093499]
[1756719428929,26.98,202.44,202.4,4.13093499]
[1756719429124,0.03628258,202.45,202.41,4.13093499]
[1756719429330,50.57628258,202.45,202.38,11.82093499]
[1756719429522,2.13598116,202.5,202.38,11.82093499]
[1756719429824,0.03716655,202.44,202.39,7.69]
[1756719430023,0.03716655,202.44,202.38,4.13093499]
[1756719430221,0.03716655,202.44,202.38,7.69]
[1756719430619,0.03716655,202.44,202.38,11.82093499]
[1756719431226,0.03716655,202.44,202.38,7.69]
[1756719431829,0.03716655,202.44,202.38,11.82093499]
[1756719432128,0.03716655,202.44,202.38,7.69]
[1756719432931,0.03716655,202.44,202.35,7.69]
[1756719433430,0.03716655,202.44,202.3,5.44091102]
[1756719433431,0.04,202.42,202.31,7.69]
[1756719433631,2.13598116,202.41,202.31,7.69]
[1756719433931,0.04,202.42,202.31,7.69]
[1756719434130,0.03428345,202.38,202.31,7.69]
[1756719434533,0.03428345,202.38,202.27,7.69]
[1756719434727,0.03428345,202.38,202.27,9.82598116]
[1756719434926,0.04,202.39,202.27,9.82598116]
[1756719435126,0.04,202.39,202.27,7.69]
[1756719435330,0.03360985,202.35,202.27,7.69]
[1756719436845,0.03360985,202.35,202.28,2.13598116]
[1756719437239,0.03360985,202.35,202.3,7.69]
[1756719437637,11.1,202.43,202.3,7.69]
[1756719438039,0.03596039,202.35,202.3,7.69]
[1756719438539,0.03596039,202.35,202.31,2.13598116]
[1756719438744,0.03596039,202.35,202.32,7.69]
[1756719438943,0.03596039,202.35,202.23,21.33093499]
[1756719439150,0.03596039,202.35,202.22,4.13093499]
[1756719439449,0.03596039,202.35,202.29,7.69]
[1756719439648,2.13598116,202.4,202.29,7.69]
[1756719439851,0.03108968,202.34,202.29,7.69]
[1756719440042,0.03108968,202.34,202.28,2.13598116]
[1756719440551,0.03108968,202.34,202.27,9.82598116]
[1756719440944,2.17598116,202.39,202.27,7.69]
[1756719441144,0.03367847,202.33,202.27,9.82598116]
[1756719441349,0.03367847,202.33,202.27,7.69]
[1756719441554,0.03367847,202.33,202.21,0.86032138]
[1756719441752,0.03367847,202.33,202.23,2.13598116]
[1756719442148,30.44,202.35,202.23,2.13598116]
[1756719442650,0.03327109,202.3,202.28,7.69]
[1756719442851,0.03327109,202.3,202.27,2.13598116]
[1756719443052,0.03327109,202.3,202.25,2.13598116]
[1756719443252,0.03327109,202.3,202.26,7.69]
[1756719443953,0.03327109,202.3,202.25,2.13598116]
[1756719444354,0.03327109,202.3,202.28,9.82598116]
[1756719444745,0.03327109,202.3,202.29,7.69]
[1756719444946,0.03327109,202.3,202.21,7.69]
[1756719445352,0.03327109,202.3,202.23,2.13598116]
[1756719445549,0.03327109,202.3,202.24,7.69]
[1756719448457,0.03327109,202.3,202.23,2.13598116]
[1756719448658,0.03327109,202.3,202.22,7.69]
[1756719448859,0.03327109,202.3,202.24,7.69]
[1756719450052,0.03327109,202.3,202.26,7.69]
[1756719450552,0.03327109,202.3,202.25,2.13598116]
[1756719450762,0.03327109,202.3,202.23,7.69]
[1756719450954,0.03327109,202.3,202.28,2.13598116]
[1756719451153,0.03327109,202.3,202.29,7.69]
[1756719451858,0.07,202.45,202.29,8.19]
[1756719452053,66.59598116,202.44,202.32,2.13598116]
[1756719452253,0.07,202.45,202.33,7.69]
[1756719452457,0.16,202.44,202.35,9.82598116]
[1756719452654,33.82,202.44,202.35,7.69]
[1756719452957,0.07,202.43,202.33,2.13598116]
[1756719453151,0.07,202.43,202.37,0.03713165]
[1756719453653,0.07,202.4,202.37,0.03713165]
[1756719453852,2.13598116,202.41,202.37,0.03713165]
[1756719454260,2.13598116,202.42,202.37,0.03713165]
[1756719454455,0.07,202.41,202.37,0.03713165]
[1756719454860,2.13598116,202.42,202.37,0.03713165]
[1756719455661,0.07,202.41,202.37,0.03713165]
[1756719455868,67.86,202.4,202.37,0.03713165]
[1756719456259,100.02,202.4,202.37,0.03713165]
[1756719457155,0.07,202.46,202.37,0.03713165]
[1756719457363,124.5,202.45,202.37,0.03713165]
[1756719457861,124.5,202.44,202.37,0.03713165]
[1756719459465,124.57,202.44,202.37,0.03713165]
[1756719459858,2.13598116,202.43,202.37,0.03713165]
[1756719460563,0.07,202.42,202.37,0.03713165]
[1756719460764,2.13598116,202.43,202.37,0.03713165]
[1756719461265,0.07,202.42,202.37,0.03713165]
[1756719461465,2.13598116,202.4,202.37,0.03713165]
[1756719461667,0.07,202.39,202.37,0.03713165]
[1756719461972,124.36,202.38,202.27,7.66]
[1756719462967,2.16598116,202.39,202.27,7.66]
[1756719463164,2.16598116,202.39,202.26,2.13598116]
[1756719463165,0.03540236,202.35,202.23,7.66]
[1756719463469,33.92,202.34,202.23,7.66]
[1756719464272,0.03160938,202.31,202.23,7.66]
[1756719466768,32.49160938,202.31,202.23,7.66]
[1756719466967,32.49160938,202.31,202.23,9.79598116]
[1756719468474,0.03160938,202.31,202.23,9.79598116]
[1756719469377,0.03160938,202.31,202.23,7.66]
[1756719474275,0.03160938,202.31,202.21,7.66]
[1756719474777,33.1,202.32,202.21,7.66]
[1756719474979,0.03138698,202.28,202.21,7.66]
[1756719476875,0.03138698,202.28,202.17,13.92691615]
[1756719477071,2.18598116,202.27,202.17,4.13093499]
[1756719477274,0.05,202.27,202.13,13.92691615]
[1756719477580,2.13598116,202.25,202.13,9.79598116]
[1756719477885,3.46,202.24,202.14,7.66]
[1756719478075,0.03114695,202.21,202.14,7.66]
[1756719478479,2.13598116,202.18,202.08,11.79093499]
[1756719478782,2.13598116,202.18,202.08,7.66]
[1756719479175,2.13598116,202.18,202.02,5.44091102]
[1756719479176,2.16824857,202.15,202.06,4.13093499]
[1756719479475,36.24824857,202.15,202.07,7.66]
[1756719479968,36.21598116,202.15,202.07,7.66]
[1756719480274,36.21598116,202.15,201.96,8.16136653]
[1756719480275,0.03782486,202.13,202.01,11.79093499]
[1756719480470,2.13598116,202.1,202.01,7.66]
[1756719480869,2.13598116,202.12,202.01,7.66]
[1756719481074,0.03130415,202.08,202.01,7.66]
[1756719481281,0.03130415,202.08,201.97,7.66]
[1756719481480,0.03130415,202.08,201.98,7.66]
[1756719481676,2.13598116,202.11,201.98,7.66]
[1756719481877,2.13598116,202.11,201.98,9.79598116]
[1756719482082,0.0356981,202.05,201.99,7.66]
[1756719482377,85.83598116,202.14,202.02,7.66]
[1756719482768,83.7,202.14,202.02,7.66]
[1756719483184,2.13598116,202.13,202.02,7.66]
[1756719483478,2.13598116,202.12,202.02,7.66]
[1756719484183,2.13598116,202.12,202.02,9.79598116]
[1756719485076,85.83598116,202.14,202.02,9.79598116]
[1756719485276,2.13598116,202.12,202.02,7.66]
[1756719485481,83.7,202.14,201.98,34.18]
[1756719485482,83.7,202.14,202.04,7.66]
[1756719488281,2.13598116,202.13,202.01,2.13598116]
[1756719488481,2.13598116,202.13,202.01,8.03]
[1756719488684,2.13598116,202.13,202.01,10.16598116]
[1756719489082,2.21598116,202.13,202.01,10.16598116]
[1756719489583,2.21598116,202.13,202.01,8.03]
[1756719490672,2.21598116,202.13,202.05,0.03489794]
[1756719491075,0.08,202.13,202.05,0.03489794]
[1756719491280,2.13598116,202.18,202.05,10.2008791]
[1756719491672,2.13598116,202.18,202.05,10.16598116]
[1756719492072,0.08,202.19,202.09,0.03231102]
[1756719495775,2.21598116,202.19,202.09,0.03231102]
[1756719496274,0.08,202.19,202.09,0.03231102]
[1756719497178,2.13598116,202.21,202.09,0.03231102]
[1756719497585,2.13598116,202.21,202.08,2.13598116]
[1756719497889,2.21598116,202.2,202.07,10.16598116]
[1756719499182,2.13598116,202.17,202.04,2.13598116]
[1756719499384,48.08,202.22,202.03,8.03]
[1756719499385,2.13598116,202.14,202.03,8.03]
[1756719499976,3.4496687,202.15,202.03,8.03]
[1756719500581,0.08,202.14,202.03,8.03]
[1756719500987,0.08,202.14,201.98,8.03]
[1756719501189,6.32,202.13,201.98,8.03]
[1756719501586,6.32,202.13,202.0,3.4496687]
[1756719501784,6.32,202.13,202.04,8.03]
[1756719503080,76.25046573,202.24,202.06,8.03]
[1756719503282,41.32,202.23,202.06,8.03]
[1756719503988,41.32,202.23,202.09,8.03]
[1756719504289,41.32,202.23,202.12,0.03448759]
[1756719504679,42.18105578,202.23,202.12,0.03448759]
[1756719504885,0.86105578,202.23,202.13,8.03]
[1756719505081,0.08,202.28,202.13,11.4796687]
[1756719505482,0.94083214,202.28,202.13,11.4796687]
[1756719505785,0.94083214,202.28,202.14,8.03]
[1756719505979,0.94083214,202.28,202.18,0.03153202]
[1756719507285,3.4496687,202.27,202.18,0.03153202]
[1756719507489,0.94083214,202.28,202.18,0.03153202]
[1756719507684,3.4496687,202.29,202.18,0.03153202]
[1756719507986,3.4496687,202.26,202.18,0.03153202]
[1756719510188,3.5296687,202.26,202.18,0.03153202]
[1756719512188,3.4496687,202.26,202.18,0.03153202]
[1756719512788,3.4496687,202.29,202.19,8.03]
[1756719513393,3.4496687,202.29,202.18,0.03153202]
[1756719513993,127.12073633,202.3,202.19,8.03]
[1756719514193,127.04073633,202.3,202.19,8.03]
[1756719514690,126.18,202.3,202.19,8.03]
[1756719514994,3.4496687,202.28,202.14,8.03]
[1756719515895,3.4496687,202.29,202.14,8.03]
[1756719517092,3.4496687,202.26,202.14,8.03]
[1756719517299,3.4496687,202.23,202.14,8.03]
[1756719518196,3.4496687,202.2,202.09,8.03]
[1756719520399,3.4496687,202.22,202.09,8.03]
[1756719521593,3.4496687,202.18,202.09,8.03]
[1756719521797,3.4496687,202.18,202.04,8.1]
[1756719522502,3.4496687,202.18,202.04,12.23093499]
[1756719522703,3.4496687,202.18,202.04,8.1]
[1756719524299,3.4496687,202.18,202.09,0.0326098]
[1756719526010,3.4496687,202.18,202.09,8.1326098]
[1756719526306,3.4496687,202.18,202.09,0.0326098]
[1756719527712,0.86072568,202.3,202.09,0.0326098]
[1756719528009,0.07,202.23,202.1,8.1]
[1756719528512,0.07,202.23,202.14,0.03154963]
[1756719529309,3.4496687,202.27,202.14,8.13154963]
[1756719529512,66.24,202.27,202.14,8.13154963]
[1756719529711,0.07,202.26,202.14,8.1]
[1756719529913,4.38039438,202.3,202.14,8.1]
[1756719530104,76.96,202.29,202.14,8.1]
[1756719532915,3.4496687,202.27,202.14,8.1]
[1756719533112,0.07,202.28,202.14,8.1]
[1756719533312,0.07,202.28,202.15,8.1]
[1756719533712,76.96,202.29,202.15,8.1]
[1756719534814,76.96,202.29,202.18,8.1]
[1756719535012,0.07,202.32,202.21,8.1]
[1756719535716,0.86052349,202.35,202.21,8.1]
[1756719536211,0.06,202.34,202.21,8.1]
[1756719536405,3.5096687,202.34,202.21,8.1]
[1756719536609,0.06,202.34,202.21,8.1]
[1756719536808,3.5096687,202.34,202.21,8.1]
[1756719537818,0.06,202.34,202.18,8.1]
[1756719538011,3.5096687,202.31,202.18,8.1]
[1756719538217,0.06,202.27,202.13,8.1]
[1756719538711,0.06,202.34,202.13,11.5496687]
[1756719538915,3.4496687,202.31,202.14,8.1]
[1756719539320,3.5096687,202.31,202.14,8.1]
[1756719540817,3.5096687,202.31,202.17,8.1]
[1756719541017,0.06,202.31,202.17,8.1]
[1756719541716,3.4496687,202.32,202.17,8.1]
[1756719542016,0.92052349,202.35,202.2,8.1]
[1756719542522,0.86052349,202.35,202.2,8.1]
[1756719542721,61.74,202.36,202.25,8.13129116]
[1756719543716,3.5096687,202.35,202.25,0.03129116]
[1756719545115,3.4496687,202.31,202.25,0.03129116]
[1756719545418,3.5096687,202.31,202.25,0.03129116]
[1756719549623,62.60047029,202.36,202.25,0.03129116]
[1756719549624,3.4496687,202.32,202.25,0.03129116]
[1756719550625,3.5096687,202.35,202.25,0.03129116]
[1756719551026,125.54,202.34,202.25,0.03129116]
[1756719559527,0.03764652,202.32,202.25,0.03129116]
[1756719560033,2.18933345,202.32,202.25,0.03129116]
[1756719563933,0.03764652,202.32,202.25,0.03129116]
[1756719566229,2.18933345,202.32,202.25,0.03129116]
[1756719568331,2.24933345,202.32,202.25,0.03129116]
[1756719569228,2.21168693,202.26,202.25,0.03129116]
[1756719569431,2.21168693,202.26,202.12,5.44091102]
[1756719569432,126.77168693,202.26,202.13,4.139466]
[1756719569736,2.15168693,202.22,202.12,11.899466]
[1756719570643,124.62,202.26,202.1,2.15168693]
[1756719570644,2.15168693,202.27,202.16,9.91168693]
[1756719570838,0.03200186,202.19,202.16,2.15168693]
[1756719571136,23.56,202.27,202.17,7.76]
[1756719571337,0.03628809,202.2,202.16,2.15168693]
[1756719571531,0.03628809,202.2,202.16,6.29115293]
[1756719571731,0.03628809,202.2,202.17,7.76]
[1756719571929,0.03628809,202.2,202.16,6.29115293]
[1756719572131,0.03628809,202.2,202.17,7.76]
[1756719572631,0.03628809,202.2,202.16,6.29115293]
[1756719572837,0.03628809,202.2,202.17,7.76]
[1756719573025,0.03628809,202.2,202.16,6.29115293]
[1756719573228,0.03628809,202.2,202.17,11.899466]
[1756719573528,0.03628809,202.2,202.16,4.139466]
[1756719573938,0.03628809,202.2,202.16,11.899466]
[1756719575243,0.03628809,202.2,202.15,4.139466]
[1756719575436,0.03628809,202.2,202.15,11.899466]
[1756719575640,0.03628809,202.2,202.15,4.139466]
[1756719575839,0.03628809,202.2,202.16,7.76]
[1756719577945,0.03628809,202.2,202.15,4.139466]
[1756719578145,0.03628809,202.2,202.15,11.899466]
[1756719578347,0.03628809,202.2,202.15,4.139466]
[1756719578547,0.03628809,202.2,202.16,8.03]
[1756719579644,0.03628809,202.2,202.15,4.139466]
[1756719579843,0.03628809,202.2,202.18,8.03]
[1756719580048,0.03628809,202.2,202.19,8.03]
[1756719584851,0.03628809,202.2,202.16,4.139466]
[1756719585048,0.03628809,202.2,202.17,8.03]
[1756719585551,0.03628809,202.2,202.16,4.139466]
[1756719585948,0.03628809,202.2,202.17,8.03]
[1756719586150,0.03628809,202.2,202.16,4.139466]
[1756719586844,0.03628809,202.2,202.17,8.03]
[1756719587040,0.03628809,202.2,202.17,4.139466]
[1756719587450,0.03628809,202.2,202.19,8.03]
[1756719588554,0.03628809,202.2,202.18,8.03]
[1756719589651,0.03628809,202.2,202.17,6.29115293]
[1756719589952,0.03628809,202.2,202.18,8.03]
[1756719590252,0.03628809,202.2,202.17,6.29115293]
[1756719591049,2.15168693,202.3,202.2,2.15168693]
[1756719592355,2.15168693,202.3,202.23,0.03405716]
[1756719596655,0.1,202.31,202.23,0.03405716]
[1756719599061,0.1,202.29,202.23,0.03405716]
[1756719601663,0.1,202.26,202.23,0.03405716]
[1756719602355,2.15168693,202.3,202.23,0.03405716]
[1756719602757,2.15168693,202.3,202.18,10.18168693]
[1756719603058,2.15168693,202.3,202.24,0.03174823]
[1756719603261,0.1,202.29,202.24,0.03174823]
[1756719603456,2.15168693,202.3,202.24,0.03174823]
[1756719603862,2.25168693,202.3,202.24,0.03174823]
[1756719605761,2.15168693,202.27,202.24,0.03174823]
[1756719606268,2.15168693,202.3,202.24,0.03174823]
[1756719606457,64.86,202.29,202.24,0.03174823]
[1756719606863,0.1,202.28,202.24,0.03174823]
[1756719609871,0.11,202.35,202.24,0.03174823]
[1756719610370,123.72,202.34,202.24,0.03174823]
[1756719611571,123.72,202.34,202.25,2.15168693]
[1756719613070,123.62,202.35,202.26,7.35]
[1756719613270,334.73168693,202.37,202.26,7.35]
[1756719613467,458.33168693,202.37,202.26,7.35]
[1756719613872,458.33168693,202.37,202.29,0.03598131]
[1756719614271,334.73168693,202.37,202.29,0.03598131]
[1756719614473,123.56,202.36,202.29,0.03598131]
[1756719618068,332.58,202.37,202.29,0.03598131]
[1756719618476,123.4,202.36,202.29,0.03598131]
[1756719621980,123.51,202.36,202.29,0.03598131]
[1756719631287,2.15168693,202.35,202.29,0.03598131]
[1756719631491,0.11,202.31,202.29,0.03598131]
[1756719631790,0.08,202.29,202.18,4.139466]
[1756719631991,2.23168693,202.29,202.18,4.139466]
[1756719632894,0.03414455,202.26,202.18,4.139466]
[1756719633190,123.18,202.25,202.18,4.139466]
[1756719638493,0.08,202.24,202.17,4.139466]
[1756719639887,123.21414455,202.26,202.17,4.139466]
[1756719640094,0.08,202.25,202.15,111.2679651]
[1756719641295,0.08,202.23,202.15,107.1284991]
[1756719642195,0.03799733,202.21,202.15,107.1284991]
[1756719643598,0.11799733,202.21,202.12,4.139466]
[1756719644494,2.43799733,202.21,202.12,4.139466]
[1756719644896,0.03799733,202.21,202.15,7.67]
[1756719645089,0.03799733,202.21,202.17,2.15168693]
[1756719645289,4.52,202.24,202.17,2.15168693]
[1756719645695,0.03151537,202.21,202.17,2.15168693]
[1756719647302,0.03151537,202.21,202.14,9.82168693]
[1756719647998,0.03151537,202.21,202.14,7.67]
[1756719648203,0.03151537,202.21,202.15,2.15168693]
[1756719649898,0.03151537,202.21,202.16,7.67]
[1756719650105,0.03151537,202.21,202.19,7.67]
[1756719652008,0.03151537,202.21,202.18,2.15168693]
[1756719653606,0.03151537,202.21,202.18,9.82168693]
[1756719654300,0.03151537,202.21,202.18,7.67]
[1756719654710,0.03151537,202.21,202.15,4.139466]
[1756719655010,0.03151537,202.21,202.15,2.15168693]
[1756719656908,0.03151537,202.21,202.16,7.67]
[1756719657212,0.03151537,202.21,202.15,13.96115293]
[1756719657408,0.03151537,202.21,202.15,9.82168693]
[1756719665416,0.03151537,202.21,202.18,2.15168693]
[1756719665620,0.03151537,202.21,202.19,7.67]
[1756719665815,0.03151537,202.21,202.18,2.15168693]
[1756719666919,0.03151537,202.21,202.19,7.67]
[1756719667112,0.03151537,202.21,202.16,13.96115293]
[1756719667317,0.03151537,202.21,202.16,7.67]
[1756719667514,0.03151537,202.21,202.14,4.139466]
[1756719667822,0.03151537,202.21,202.13,7.67]
[1756719669111,0.03151537,202.21,202.16,7.98]
[1756719669320,0.03151537,202.21,202.15,2.15168693]
[1756719669517,0.03151537,202.21,202.19,7.98]